fUSD/lending_fUSD_20250602
["ID","MTS","AMOUNT","RATE_DAILY","PERIOD"]
[363754131,1748861454858,-420.0,0.00019452,2]
[363754132,1748861454867,-560.41,0.00019452,2]
[363754133,1748861454878,-420.0,0.00019452,2]
[363754134,1748861454888,-420.0,0.00019452,2]
[363754135,1748861454899,-480.09,0.00019452,2]
[363754136,1748861454910,-420.0,0.00019452,2]
[363754137,1748861454921,-569.52,0.00019452,2]
[363754138,1748861454932,-271.08,0.00019452,2]
[363754139,1748861454941,-240.44,0.00019452,2]
[363754140,1748861454951,-420.0,0.00019452,2]
[363754141,1748861454960,-316.8,0.00019452,2]
[363754142,1748861454970,-420.0,0.00019452,2]
[363754143,1748861454979,-460.1,0.00019452,2]
[363754144,1748861454989,-420.0,0.00019452,2]
[363754145,1748861454998,-420.0,0.00019452,2]
[363754146,1748861455008,-420.0,0.00019452,2]
[363754147,1748861455018,-420.0,0.00019452,2]
[363754148,1748861455027,-420.0,0.00019452,2]
[363754149,1748861455038,-564.94,0.00019452,2]
[363754150,1748861455047,-420.0,0.00019452,2]
[363754151,1748861455057,-420.0,0.00019452,2]
[363754152,1748861455067,-420.0,0.00019452,2]
[363754153,1748861455077,-420.0,0.00019452,2]
[363754154,1748861455087,-420.0,0.00019452,2]
[363754155,1748861455097,-307.36,0.00019452,2]
[363754156,1748861455106,-420.0,0.00019452,2]
[363754157,1748861455116,-420.0,0.00019452,2]
[363754158,1748861455126,-420.0,0.00019452,2]
[363754159,1748861455135,-420.0,0.00019452,2]
[363754160,1748861455145,-420.0,0.00019452,2]
[363754161,1748861455155,-420.0,0.00019452,2]
[363754162,1748861455165,-420.0,0.00019452,2]
[363754163,1748861455174,-420.0,0.00019452,2]
[363754164,1748861455184,-420.0,0.00019452,2]
[363754165,1748861455193,-398.9,0.00019452,2]
[363754166,1748861455203,-420.0,0.00019452,2]
[363754167,1748861455213,-420.0,0.00019452,2]
[363754168,1748861455222,-420.0,0.00019452,2]
[363754169,1748861455232,-420.0,0.00019452,2]
[363754170,1748861455243,-420.0,0.00019452,2]
[363754171,1748861455253,-420.0,0.00019452,2]
[363754172,1748861455263,-420.0,0.00019452,2]
[363754173,1748861455272,-420.0,0.00019452,2]
[363754174,1748861455282,-420.0,0.00019452,2]
[363754175,1748861455291,-420.0,0.00019452,2]
[363754176,1748861455301,-420.0,0.00019452,2]
[363754177,1748861455311,-420.0,0.00019452,2]
[363754178,1748861455320,-420.0,0.00019452,2]
[363754179,1748861455330,-420.0,0.00019452,2]
[363754180,1748861455339,-420.0,0.00019452,2]
[363754181,1748861455349,-420.0,0.00019452,2]
[363754182,1748861455359,-420.0,0.00019452,2]
[363754183,1748861455368,-420.0,0.00019452,2]
[363754184,1748861455378,-420.0,0.00019452,2]
[363754185,1748861455388,-420.0,0.00019452,2]
[363754186,1748861455398,-420.0,0.00019452,2]
[363754187,1748861455408,-420.0,0.00019452,2]
[363754188,1748861455418,-420.0,0.00019452,2]
[363754189,1748861455428,-420.0,0.00019452,2]
[363754190,1748861455440,-420.0,0.00019452,2]
[363754191,1748861455450,-420.0,0.00019452,2]
[363754192,1748861455460,-165.5,0.00019452,2]
[363754193,1748861455471,-324.58,0.00019452,2]
[363754194,1748861455481,-420.0,0.00019452,2]
[363754195,1748861455491,-420.0,0.00019452,2]
[363754196,1748861455500,-420.0,0.00019452,2]
[363754197,1748861455512,-420.0,0.00019452,2]
[363754198,1748861455522,-420.0,0.00019452,2]
[363754199,1748861455532,-420.0,0.00019452,2]
[363754200,1748861455542,-420.0,0.00019452,2]
[363754201,1748861455551,-420.0,0.00019452,2]
[363754202,1748861455561,-420.0,0.00019452,2]
[363754203,1748861455571,-420.0,0.00019452,2]
[363754204,1748861455581,-363.2,0.00019452,2]
[363754205,1748861455592,-420.0,0.00019452,2]
[363754206,1748861455601,-420.0,0.00019452,2]
[363754207,1748861455612,-420.0,0.00019452,2]
[363754208,1748861455622,-420.0,0.00019452,2]
[363754209,1748861455633,-420.0,0.00019452,2]
[363754210,1748861455643,-514.54,0.00019452,2]
[363754211,1748861455653,-420.0,0.00019452,2]
[363754212,1748861455663,-420.0,0.00019452,2]
[363754213,1748861455674,-420.0,0.00019452,2]
[363754214,1748861455684,-420.0,0.00019452,2]
[363754215,1748861455694,-420.0,0.00019452,2]
[363754216,1748861455704,-420.0,0.00019452,2]
[363754217,1748861455714,-420.0,0.00019452,2]
[363754218,1748861455725,-420.0,0.00019452,2]
[363754219,1748861455735,-548.02309025,0.00019452,2]
[363754220,1748861455744,-6010.89,0.00019452,2]
[363754221,1748861455754,-420.0,0.00019452,2]
[363754222,1748861455763,-420.0,0.00019452,2]
[363754223,1748861455773,-1034.99,0.00019452,2]
[363754224,1748861455784,-420.0,0.00019452,2]
[363754225,1748861455793,-420.0,0.00019452,2]
[363754226,1748861455801,-420.0,0.00019452,2]
[363754227,1748861455810,-552.05674296,0.00019452,2]
[363754228,1748861455818,-1156.44,0.00019452,2]
[363754229,1748861455827,-420.0,0.00019452,2]
[363754230,1748861455836,-420.0,0.00019452,2]
[363754231,1748861455844,-420.0,0.00019452,2]
[363754232,1748861455853,-420.0,0.00019452,2]
[363754233,1748861455861,-420.0,0.00019452,2]
[363754234,1748861455871,-420.0,0.00019452,2]
[363754235,1748861455880,-420.0,0.00019452,2]
[363754236,1748861455890,-753.63,0.00019452,2]
[363754237,1748861455899,-420.0,0.00019452,2]
[363754238,1748861455907,-420.0,0.00019452,2]
[363754239,1748861455915,-420.0,0.00019452,2]
[363754240,1748861455923,-250.0,0.00019452,2]
[363754241,1748861455930,-420.0,0.00019452,2]
[363754242,1748861455939,-499.56,0.00019452,2]
[363754243,1748861455946,-160.1,0.00019452,2]
[363754244,1748861455953,-941.11,0.00019452,2]
[363754245,1748861455960,-420.0,0.00019452,2]
[363754246,1748861455967,-420.0,0.00019452,2]
[363754247,1748861455975,-420.0,0.00019452,2]
[363754248,1748861455982,-152.2,0.00019452,2]
[363754249,1748861455990,-466.33,0.00019452,2]
[363754250,1748861455996,-420.0,0.00019452,2]
[363754251,1748861456003,-420.0,0.00019452,2]
[363754252,1748861456010,-785.33,0.00019452,2]
[363754253,1748861456017,-420.0,0.00019452,2]
[363754254,1748861456024,-614.12,0.00019452,2]
[363754255,1748861456034,-420.0,0.00019452,2]
[363754256,1748861456044,-420.0,0.00019452,2]
[363754257,1748861456053,-420.0,0.00019452,2]
[363754258,1748861456063,-420.0,0.00019452,2]
[363754259,1748861456073,-351.28,0.00019452,2]
[363754260,1748861456084,-420.0,0.00019452,2]
[363754261,1748861456094,-337.64,0.00019452,2]
[363754262,1748861456104,-420.0,0.00019452,2]
[363754263,1748861456114,-420.0,0.00019452,2]
[363754264,1748861456124,-420.0,0.00019452,2]
[363754265,1748861456134,-420.0,0.00019452,2]
[363754266,1748861456145,-1523.94,0.00019452,2]
[363754267,1748861456155,-420.0,0.00019452,2]
[363754268,1748861456166,-420.0,0.00019452,2]
[363754269,1748861456175,-420.0,0.00019452,2]
[363754270,1748861456185,-4372.39,0.00019452,2]
[363754271,1748861456198,-162.58,0.00019452,2]
[363754272,1748861456207,-420.0,0.00019452,2]
[363754273,1748861456216,-513.04,0.00019452,2]
[363754274,1748861456226,-732.16,0.00019452,2]
[363754275,1748861456235,-420.0,0.00019452,2]
[363754276,1748861456244,-420.0,0.00019452,2]
[363754277,1748861456252,-420.0,0.00019452,2]
[363754278,1748861456261,-2920.94,0.00019452,2]
[363754279,1748861456270,-277.7,0.00019452,2]
[363754280,1748861456279,-458.75,0.00019452,2]
[363754281,1748861456291,-466.31,0.00019452,2]
[363754282,1748861456299,-420.0,0.00019452,2]
[363754283,1748861456308,-420.0,0.00019452,2]
[363754284,1748861456318,-420.0,0.00019452,2]
[363754285,1748861456328,-420.0,0.00019452,2]
[363754286,1748861456337,-420.0,0.00019452,2]
[363754287,1748861456346,-420.0,0.00019452,2]
[363754288,1748861456356,-420.0,0.00019452,2]
[363754289,1748861456365,-420.0,0.00019452,2]
[363754290,1748861456374,-406.44,0.00019452,2]
[363754291,1748861456383,-420.0,0.00019452,2]
[363754292,1748861456392,-784.16,0.00019452,2]
[363754293,1748861456402,-420.0,0.00019452,2]
[363754294,1748861456411,-420.0,0.00019452,2]
[363754295,1748861456421,-488.95,0.00019452,2]
[363754296,1748861456434,-420.0,0.00019452,2]
[363754297,1748861456444,-420.0,0.00019452,2]
[363754298,1748861456454,-673.78,0.00019452,2]
[363754299,1748861456463,-420.0,0.00019452,2]
[363754300,1748861456472,-420.0,0.00019452,2]
[363754301,1748861456482,-420.0,0.00019452,2]
[363754302,1748861456491,-420.0,0.00019452,2]
[363754303,1748861456499,-420.0,0.00019452,2]
[363754304,1748861456510,-420.0,0.00019452,2]
[363754305,1748861456519,-420.0,0.00019452,2]
[363754306,1748861456528,-938.45,0.00019452,2]
[363754307,1748861456538,-420.0,0.00019452,2]
[363754308,1748861456547,-420.0,0.00019452,2]
[363754309,1748861456555,-603.19,0.00019452,2]
[363754310,1748861456564,-420.0,0.00019452,2]
[363754311,1748861456573,-420.0,0.00019452,2]
[363754312,1748861456582,-2306.79,0.00019452,2]
[363754313,1748861456591,-420.0,0.00019452,2]
[363754314,1748861456598,-420.0,0.00019452,2]
[363754315,1748861456604,-420.0,0.00019452,2]
[363754316,1748861456613,-420.0,0.00019452,2]
[363754317,1748861456620,-420.0,0.00019452,2]
[363754318,1748861456628,-1805.82,0.00019452,2]
[363754319,1748861456636,-420.0,0.00019452,2]
[363754320,1748861456644,-523.6,0.00019452,2]
[363754321,1748861456653,-420.0,0.00019452,2]
[363754322,1748861456663,-306.96,0.00019452,2]
[363754323,1748861456673,-420.0,0.00019452,2]
[363754324,1748861456682,-468.91,0.00019452,2]
[363754325,1748861456693,-1112.35,0.00019452,2]
[363754326,1748861456703,-420.0,0.00019452,2]
[363754327,1748861456712,-420.0,0.00019452,2]
[363754328,1748861456722,-251.32,0.00019452,2]
[363754329,1748861456731,-420.0,0.00019452,2]
[363754330,1748861456740,-351.14,0.00019452,2]
[363754331,1748861456750,-420.0,0.00019452,2]
[363754332,1748861456760,-420.0,0.00019452,2]
[363754333,1748861456770,-736.38,0.00019452,2]
[363754334,1748861456779,-420.0,0.00019452,2]
[363754335,1748861456790,-1435.92,0.00019452,2]
[363754336,1748861456800,-420.0,0.00019452,2]
[363754337,1748861456809,-420.0,0.00019452,2]
[363754338,1748861456819,-420.0,0.00019452,2]
[363754339,1748861456828,-420.0,0.00019452,2]
[363754340,1748861456838,-420.0,0.00019452,2]
[363754341,1748861456848,-1377.97,0.00019452,2]
[363754342,1748861456857,-2324.25,0.00019452,2]
[363754343,1748861456867,-420.0,0.00019452,2]
[363754344,1748861456876,-362.3,0.00019452,2]
[363754345,1748861456886,-420.0,0.00019452,2]
[363754346,1748861456896,-1598.09,0.00019452,2]
[363754347,1748861456906,-420.0,0.00019452,2]
[363754348,1748861456915,-420.0,0.00019452,2]
[363754349,1748861456925,-1046.18,0.00019452,2]
[363754350,1748861456934,-420.0,0.00019452,2]
[363754351,1748861456945,-420.0,0.00019452,2]
[363754352,1748861456955,-420.0,0.00019452,2]
[363754353,1748861456964,-420.0,0.00019452,2]
[363754354,1748861456973,-420.0,0.00019452,2]
[363754355,1748861456982,-420.0,0.00019452,2]
[363754356,1748861456991,-439.67,0.00019452,2]
[363754357,1748861457000,-298.0,0.00019452,2]
[363754358,1748861457009,-420.0,0.00019452,2]
[363754359,1748861457018,-420.0,0.00019452,2]
[363754360,1748861457027,-1000.0,0.00019452,2]
[363754361,1748861457038,-420.0,0.00019452,2]
[363754362,1748861457047,-1682.95,0.00019452,2]
[363754363,1748861457057,-420.0,0.00019452,2]
[363754364,1748861457066,-420.0,0.00019452,2]
[363754365,1748861457076,-2139.45,0.00019452,2]
[363754366,1748861457085,-420.0,0.00019452,2]
[363754367,1748861457094,-1045.94,0.00019452,2]
[363754368,1748861457102,-421.54,0.00019452,2]
[363754369,1748861457112,-420.0,0.00019452,2]
[363754370,1748861457121,-420.0,0.00019452,2]
[363754371,1748861457130,-427.66,0.00019452,2]
[363754372,1748861457140,-420.0,0.00019452,2]
[363754373,1748861457150,-373.56,0.00019452,2]
[363754374,1748861457159,-420.0,0.00019452,2]
[363754375,1748861457169,-676.1,0.00019452,2]
[363754376,1748861457179,-515.69,0.00019452,2]
[363754377,1748861457317,-420.0,0.00019452,2]
[363754378,1748861457344,-150.0,0.00019452,2]
[363754379,1748861457355,-420.0,0.00019452,2]
[363754380,1748861457366,-420.0,0.00019452,2]
[363754381,1748861457376,-6487.2,0.00019452,2]
[363754382,1748861457387,-1114.39,0.00019452,2]
[363754383,1748861457397,-501.32,0.00019452,2]
[363754384,1748861457407,-420.0,0.00019452,2]
[363754385,1748861457418,-420.0,0.00019452,2]
[363754386,1748861457432,-420.0,0.00019452,2]
[363754387,1748861457442,-420.0,0.00019452,2]
[363754388,1748861457452,-1354.72,0.00019452,2]
[363754389,1748861457463,-986.98,0.00019452,2]
[363754390,1748861457474,-420.0,0.00019452,2]
[363754391,1748861457484,-420.0,0.00019452,2]
[363754392,1748861457496,-420.0,0.00019452,2]
[363754393,1748861457507,-420.0,0.00019452,2]
[363754394,1748861457517,-2534.67,0.00019452,2]
[363754395,1748861457529,-420.0,0.00019452,2]
[363754396,1748861457541,-420.0,0.00019452,2]
[363754397,1748861457552,-420.0,0.00019452,2]
[363754398,1748861457562,-420.0,0.00019452,2]
[363754399,1748861457572,-420.0,0.00019452,2]
[363754400,1748861457582,-420.0,0.00019452,2]
[363754401,1748861457593,-1507.75,0.00019452,2]
[363754402,1748861457603,-420.0,0.00019452,2]
[363754403,1748861457614,-420.0,0.00019452,2]
[363754404,1748861457624,-420.0,0.00019452,2]
[363754405,1748861457635,-488.83,0.00019452,2]
[363754406,1748861457645,-256.04,0.00019452,2]
[363754407,1748861457654,-420.0,0.00019452,2]
[363754408,1748861457663,-420.0,0.00019452,2]
[363754409,1748861457674,-420.0,0.00019452,2]
[363754410,1748861457683,-420.0,0.00019452,2]
[363754411,1748861457693,-548.57,0.00019452,2]
[363754412,1748861457703,-1420.55,0.00019452,2]
[363754413,1748861457714,-2273.95,0.00019452,2]
[363754414,1748861457724,-352.25484167,0.00019452,2]
[363754415,1748861457734,-420.0,0.00019452,2]
[363754416,1748861457745,-615.54,0.00019452,2]
[363754417,1748861457756,-998.5,0.00019452,2]
[363754418,1748861457765,-420.0,0.00019452,2]
[363754419,1748861457775,-917.23,0.00019452,2]
[363754420,1748861457786,-420.0,0.00019452,2]
[363754421,1748861457795,-420.0,0.00019452,2]
[363754422,1748861457806,-869.05,0.00019452,2]
[363754423,1748861457815,-2200.0,0.000195,7]
[363754424,1748861457825,-202.41775824,0.00019503,2]
[363754425,1748861457835,-258.04,0.00019509,2]
[363754426,1748861457845,-14544.3374695,0.00019535,2]
[363754427,1748861457855,-7269.97799587,0.00019535,2]
[363754428,1748861457865,-559.0,0.00019541,2]
[363754429,1748861457875,-631.0,0.00019548,2]
[363754430,1748861457887,-192.77793536,0.00019579,2]
[363754431,1748861457896,-250.54213618,0.00019589,2]
[363754432,1748861457906,-156.14792253,0.00019589,2]
[363754433,1748861457915,-420.0,0.00019589,2]
[363754434,1748861457924,-420.0,0.00019589,2]
[363754435,1748861457934,-420.0,0.00019589,2]
[363754436,1748861457944,-406.8305097,0.00019589,2]
[363754437,1748861457954,-420.0,0.00019589,2]
[363754438,1748861457963,-420.0,0.00019589,2]
[363754439,1748861457974,-420.0,0.00019589,2]
[363754440,1748861457984,-422.44153479,0.00019589,2]
[363754441,1748861457993,-421.07784663,0.00019589,2]
[363754442,1748861458005,-420.0,0.00019589,2]
[363754443,1748861458015,-420.0,0.00019589,2]
[363754444,1748861458024,-420.0,0.00019589,2]
[363754445,1748861458035,-420.0,0.00019589,2]
[363754446,1748861458045,-420.0,0.00019589,2]
[363754447,1748861458054,-421.28,0.00019589,2]
[363754448,1748861458063,-485.5,0.00019589,2]
[363754449,1748861458072,-330.94,0.00019589,2]
[363754450,1748861458082,-552.34,0.00019589,2]
[363754451,1748861458091,-420.0,0.00019589,2]
[363754452,1748861458101,-420.0,0.00019589,2]
[363754453,1748861458110,-420.0,0.00019589,2]
[363754454,1748861458120,-420.0,0.00019589,2]
[363754455,1748861458129,-420.0,0.00019589,2]
[363754456,1748861458139,-387.3,0.00019589,2]
[363754457,1748861458149,-1574.91,0.00019589,2]
[363754458,1748861458158,-280.98,0.00019589,2]
[363754459,1748861458168,-420.0,0.00019589,2]
[363754460,1748861458177,-420.0,0.00019589,2]
[363754461,1748861458187,-420.0,0.00019589,2]
[363754462,1748861458196,-420.0,0.00019589,2]
[363754463,1748861458205,-420.0,0.00019589,2]
[363754464,1748861458215,-295.56,0.00019589,2]
[363754465,1748861458224,-435.27,0.00019589,2]
[363754466,1748861458234,-420.0,0.00019589,2]
[363754467,1748861458243,-420.0,0.00019589,2]
[363754468,1748861458252,-420.0,0.00019589,2]
[363754469,1748861458261,-420.0,0.00019589,2]
[363754470,1748861458270,-420.0,0.00019589,2]
[363754471,1748861458279,-420.0,0.00019589,2]
[363754472,1748861458289,-420.0,0.00019589,2]
[363754473,1748861458299,-420.0,0.00019589,2]
[363754474,1748861458308,-560.41,0.00019589,2]
[363754475,1748861458317,-409.84,0.00019589,2]
[363754476,1748861458327,-420.0,0.00019589,2]
[363754477,1748861458336,-420.0,0.00019589,2]
[363754478,1748861458345,-420.0,0.00019589,2]
[363754479,1748861458355,-460.1,0.00019589,2]
[363754480,1748861458364,-420.0,0.00019589,2]
[363754481,1748861458374,-420.0,0.00019589,2]
[363754482,1748861458384,-420.0,0.00019589,2]
[363754483,1748861458393,-420.0,0.00019589,2]
[363754484,1748861458403,-420.0,0.00019589,2]
[363754485,1748861458413,-420.0,0.00019589,2]
[363754486,1748861458422,-437.13,0.00019589,2]
[363754487,1748861458435,-347.48,0.00019589,2]
[363754488,1748861458444,-420.0,0.00019589,2]
[363754489,1748861458454,-420.0,0.00019589,2]
[363754490,1748861458464,-420.0,0.00019589,2]
[363754491,1748861458475,-420.0,0.00019589,2]
[363754492,1748861458485,-420.0,0.00019589,2]
[363754493,1748861458495,-420.0,0.00019589,2]
[363754494,1748861458505,-420.0,0.00019589,2]
[363754495,1748861458515,-420.0,0.00019589,2]
[363754496,1748861458525,-420.0,0.00019589,2]
[363754497,1748861458536,-420.0,0.00019589,2]
[363754498,1748861458546,-420.0,0.00019589,2]
[363754499,1748861458556,-420.0,0.00019589,2]
[363754500,1748861458566,-420.0,0.00019589,2]
[363754501,1748861458575,-420.0,0.00019589,2]
[363754502,1748861458585,-420.0,0.00019589,2]
[363754503,1748861458596,-420.0,0.00019589,2]
[363754504,1748861458605,-420.0,0.00019589,2]
[363754505,1748861458615,-382.43180477,0.00019589,2]
[363754506,1748861458626,-420.0,0.00019589,2]
[363754507,1748861458635,-420.0,0.00019589,2]
[363754508,1748861458646,-420.0,0.00019589,2]
[363754509,1748861458655,-420.0,0.00019589,2]
[363754510,1748861458665,-420.0,0.00019589,2]
[363754511,1748861458675,-433.56,0.00019589,2]
[363754512,1748861458684,-420.0,0.00019589,2]
[363754513,1748861458694,-420.0,0.00019589,2]
[363754514,1748861458704,-489.26,0.00019589,2]
[363754515,1748861458714,-420.0,0.00019589,2]
[363754516,1748861458723,-420.0,0.00019589,2]
[363754517,1748861458732,-420.0,0.00019589,2]
[363754518,1748861458742,-420.0,0.00019589,2]
[363754519,1748861458751,-420.0,0.00019589,2]
[363754520,1748861458761,-420.0,0.00019589,2]
[363754521,1748861458771,-420.0,0.00019589,2]
[363754522,1748861458780,-420.0,0.00019589,2]
[363754523,1748861458792,-420.0,0.00019589,2]
[363754524,1748861458801,-420.0,0.00019589,2]
[363754525,1748861458815,-420.0,0.00019589,2]
[363754526,1748861458824,-420.0,0.00019589,2]
[363754527,1748861458834,-420.0,0.00019589,2]
[363754528,1748861458844,-420.0,0.00019589,2]
[363754529,1748861458854,-420.0,0.00019589,2]
[363754530,1748861458863,-420.0,0.00019589,2]
[363754531,1748861458873,-420.0,0.00019589,2]
[363754532,1748861458883,-420.0,0.00019589,2]
[363754533,1748861458893,-420.0,0.00019589,2]
[363754534,1748861458903,-420.0,0.00019589,2]
[363754535,1748861458914,-420.0,0.00019589,2]
[363754536,1748861458924,-420.0,0.00019589,2]
[363754537,1748861458934,-420.0,0.00019589,2]
[363754538,1748861458944,-420.0,0.00019589,2]
[363754539,1748861458954,-420.0,0.00019589,2]
[363754540,1748861458964,-155.64,0.00019589,2]
[363754541,1748861458973,-420.0,0.00019589,2]
[363754542,1748861458983,-340.88,0.00019589,2]
[363754543,1748861458993,-6010.89,0.00019589,2]
[363754544,1748861459003,-1034.99,0.00019589,2]
[363754545,1748861459013,-420.0,0.00019589,2]
[363754546,1748861459022,-420.0,0.00019589,2]
[363754547,1748861459033,-1156.44,0.00019589,2]
[363754548,1748861459044,-320.12,0.00019589,2]
[363754549,1748861459054,-500.0,0.00019589,2]
[363754550,1748861459064,-426.12324029,0.00019589,2]
[363754551,1748861459074,-420.0,0.00019589,2]
[363754552,1748861459085,-420.0,0.00019589,2]
[363754553,1748861459095,-317.58,0.00019589,2]
[363754554,1748861459104,-420.0,0.00019589,2]
[363754555,1748861459115,-753.63,0.00019589,2]
[363754556,1748861459126,-210.94,0.00019589,2]
[363754557,1748861459136,-341.96,0.00019589,2]
[363754558,1748861459146,-175.8,0.00019589,2]
[363754559,1748861459156,-203.9,0.00019589,2]
[363754560,1748861459166,-420.0,0.00019589,2]
[363754561,1748861459177,-941.11,0.00019589,2]
[363754562,1748861459187,-420.0,0.00019589,2]
[363754563,1748861459197,-420.0,0.00019589,2]
[363754564,1748861459207,-420.0,0.00019589,2]
[363754565,1748861459217,-466.33,0.00019589,2]
[363754566,1748861459227,-420.0,0.00019589,2]
[363754567,1748861459237,-420.0,0.00019589,2]
[363754568,1748861459246,-785.33,0.00019589,2]
[363754569,1748861459256,-420.0,0.00019589,2]
[363754570,1748861459266,-614.12,0.00019589,2]
[363754571,1748861459276,-324.67310921,0.00019589,2]
[363754572,1748861459286,-420.0,0.00019589,2]
[363754573,1748861459295,-420.0,0.00019589,2]
[363754574,1748861459305,-420.0,0.00019589,2]
[363754575,1748861459316,-249.6,0.00019589,2]
[363754576,1748861459326,-420.0,0.00019589,2]
[363754577,1748861459336,-541.9,0.00019589,2]
[363754578,1748861459346,-420.0,0.00019589,2]
[363754579,1748861459357,-269.38,0.00019589,2]
[363754580,1748861459367,-1523.94,0.00019589,2]
[363754581,1748861459376,-420.0,0.00019589,2]
[363754582,1748861459386,-420.0,0.00019589,2]
[363754583,1748861459396,-540.4,0.00019589,2]
[363754584,1748861459406,-4372.39,0.00019589,2]
[363754585,1748861459416,-420.0,0.00019589,2]
[363754586,1748861459428,-732.16,0.00019589,2]
[363754587,1748861459440,-420.0,0.00019589,2]
[363754588,1748861459450,-420.0,0.00019589,2]
[363754589,1748861459460,-420.0,0.00019589,2]
[363754590,1748861459470,-2920.94,0.00019589,2]
[363754591,1748861459480,-458.75,0.00019589,2]
[363754592,1748861459491,-466.31,0.00019589,2]
[363754593,1748861459501,-420.0,0.00019589,2]
[363754594,1748861459511,-274.38,0.00019589,2]
[363754595,1748861459521,-331.8,0.00019589,2]
[363754596,1748861459531,-420.0,0.00019589,2]
[363754597,1748861459542,-420.0,0.00019589,2]
[363754598,1748861459551,-420.0,0.00019589,2]
[363754599,1748861459561,-420.0,0.00019589,2]
[363754600,1748861459571,-420.0,0.00019589,2]
[363754601,1748861459582,-385.3,0.00019589,2]
[363754602,1748861459592,-784.16,0.00019589,2]
[363754603,1748861459602,-452.04,0.00019589,2]
[363754604,1748861459612,-420.0,0.00019589,2]
[363754605,1748861459622,-488.95,0.00019589,2]
[363754606,1748861459632,-420.0,0.00019589,2]
[363754607,1748861459642,-290.6,0.00019589,2]
[363754608,1748861459652,-673.78,0.00019589,2]
[363754609,1748861459662,-420.0,0.00019589,2]
[363754610,1748861459672,-420.0,0.00019589,2]
[363754611,1748861459681,-420.0,0.00019589,2]
[363754612,1748861459691,-251.7,0.00019589,2]
[363754613,1748861459700,-420.0,0.00019589,2]
[363754614,1748861459710,-420.0,0.00019589,2]
[363754615,1748861459719,-420.0,0.00019589,2]
[363754616,1748861459728,-938.45,0.00019589,2]
[363754617,1748861459738,-420.0,0.00019589,2]
[363754618,1748861459747,-246.62556347,0.00019589,2]
[363754619,1748861459757,-603.19,0.00019589,2]
[363754620,1748861459767,-420.0,0.00019589,2]
[363754621,1748861459777,-420.0,0.00019589,2]
[363754622,1748861459787,-2306.79,0.00019589,2]
[363754623,1748861459797,-420.0,0.00019589,2]
[363754624,1748861459807,-420.0,0.00019589,2]
[363754625,1748861459816,-160.3,0.00019589,2]
[363754626,1748861459826,-420.0,0.00019589,2]
[363754627,1748861459835,-491.82,0.00019589,2]
[363754628,1748861459845,-1805.82,0.00019589,2]
[363754629,1748861459855,-420.0,0.00019589,2]
[363754630,1748861459864,-420.0,0.00019589,2]